Cogmind - Beta 16.1 @@@ ROGUE MODE // 2026.03.19 @ 22:34:55 Player: Ez Result: Destroyed by Y-54 Guardian with Flak Gun Performance ------------- Evolutions (3) 1500 Regions Visited (5) 1000 Robots Destroyed (60) 300 Value Destroyed (2404) 2404 Prototype IDs (1) 20 Alien Tech Used (0) 0 Bonus (95) 95 TOTAL SCORE: 5319 Bonus ------- Follower Combat Kills 95 Cogmind --------- Core Integrity 0/700 Matter 165/300 Energy 150/150 System Corruption 17% Temperature Cool (18) Movement Core (550) Ox10 Location -7/Factory Parts ------- > --- POWER (1) -------- Micro Nuclear Core > --- PROPULSION (5) --- (None) > --- UTILITY (5) ------ Large Storage Unit Improved Signal Interpreter Improved Weapon Shielding > --- WEAPON (2) ------- Axe > --- INVENTORY (15) --- Light Nuclear Core Carbon-fiber Leg Carbon-fiber Leg Improved Heat Sink Advanced ECM Suite Improved Datajack Improved Datajack Remote Datajack Heavy Mace Axe Peak State ------------ > --- POWER ------------ Micro Nuclear Core > --- PROPULSION ------- Armored Treads Armored Treads Armored Treads Armored Treads Armored Treads > --- UTILITY ---------- Improved Heat Sink Large Storage Unit Improved Signal Interpreter Transmission Jammer Improved Medium Armor Plating > --- WEAPON ----------- Gauss Cannon Heavy Flail > --- INVENTORY -------- Light Nuclear Core Micro Nuclear Core Armored Treads Armored Treads Armored Treads Improved VTOL Module Improved Heat Sink Advanced ECM Suite Heavy Assault Rifle Improved Datajack Improved Datajack Remote Datajack Axe Axe Ripper [Rating: 45] Favorites ----------- Power Light Angular Momentum Engine Engine Light Angular Momentum Engine Power Core Micro Nuclear Core Propulsion Armored Treads Treads Armored Treads Leg Carbon-fiber Leg Wheel Armored Wheel Flight Unit Improved VTOL Module Utility Large Storage Unit Device Improved Heat Sink Storage Large Storage Unit Processor Improved Signal Interpreter Hackware System Shield Protection Light Armor Plating Weapon Heavy Assault Rifle Energy Gun Gatling Laser Energy Cannon EM Pulse Cannon Ballistic Gun Heavy Assault Rifle Ballistic Cannon Gauss Cannon Launcher Grenade Launcher Special Weapon Mining Laser Impact Weapon Heavy Flail Slashing Weapon Ripper Special Melee Weapon Improved Datajack Build | -11 -10 -10 -9 -8 -7 ------- Run | Yrd Mat Min Mat Mat Fac Slots Evolved 6 | . . . 2 2 2 Power . | . . . . . . Propulsion 3 | . . . 1 1 1 Utility 3 | . . . 1 1 1 Weapon . | . . . . . . Parts Attached 87 | 6 . 2 14 21 44 Power 10 | 1 . 1 1 2 5 Engine 6 | 1 . 1 . 2 2 Core 4 | . . . 1 . 3 Reactor . | . . . . . . Propulsion 34 | 2 . . 7 8 17 Treads 16 | 2 . . 4 . 10 Leg 11 | . . . 3 7 1 Wheel 6 | . . . . . 6 Hover . | . . . . . . Flight 1 | . . . . 1 . Utility 23 | 1 . 1 2 8 11 Device 5 | . . 1 . . 4 Storage 2 | 1 . . 1 . . Processor 1 | . . . . 1 . Hackware 1 | . . . 1 . . Protection 14 | . . . . 7 7 Artifact . | . . . . . . Weapon 20 | 2 . . 4 3 11 Energy Gun 1 | . . . . . 1 Energy Cannon 1 | . . . . . 1 Ballistic Gun 8 | 2 . . 1 2 3 Ballistic Cannon 2 | . . . 1 . 1 Launcher 2 | . . . . 1 1 Special Weapon 2 | . . . 1 . 1 Impact Weapon 1 | . . . . . 1 Slashing Weapon 2 | . . . 1 . 1 Piercing Weapon . | . . . . . . Special Melee Weapon 1 | . . . . . 1 Unidentified Prototypes 1 | . . . . 1 . Parts Lost 63 | . . . 6 17 40 Power 8 | . . . 2 2 4 Propulsion 27 | . . . 4 6 17 Utility 15 | . . . . 5 10 Weapon 13 | . . . . 4 9 Highest Loss Streak 13 | . . . 4 11 13 To Critical Strikes . | . . . . . . Average Backups 9 | 2 1 4 6 6 13 Power 1 | 1 1 1 . . 1 Propulsion 1 | . . . . . 2 Utility 1 | . . . 1 1 1 Weapon 3 | . . 2 3 3 4 Tool/Special . | . . . . . . Unused Backups 16 | . . 2 3 . 11 Power 4 | . . 2 . . 2 Propulsion 1 | . . . . . 1 Utility 4 | . . . 1 . 3 Weapon 5 | . . . 2 . 3 Tool/Special 2 | . . . . . 2 Average Slot Usage (%) 87 | . 85 87 92 81 88 Engine 7 | . 14 14 10 8 4 Treads 19 | . 28 28 24 . 24 Leg 7 | . . . 1 24 3 Wheel 1 | . . . . . 3 Device 6 | . . 2 11 1 8 Storage 8 | . 14 14 11 8 7 Processor 5 | . . . . 8 7 Hackware 2 | . . . 10 . . Protection 7 | . . . . 12 9 Ballistic Gun 7 | . 28 28 7 7 2 Ballistic Cannon 2 | . . . 6 1 2 Special Weapon 1 | . . . 5 1 . Impact Weapon 2 | . . . . . 4 Slashing Weapon 3 | . . . 3 6 2 Peak Build Rating 45 | 6 6 13 21 31 45 Average Rating 26 | 3 6 7 16 21 37 On Entrance 11 | . 6 6 13 15 31 Avg Prop Armor Cover (%) 7 | . . . . . 7 Naked Turns . | . . . . . . Heaviest Build 49 | 13 13 18 33 46 49 Greatest Support 100 | 40 40 40 60 57 100 Greatest Overweight (x) 10 | 1 . . 10 7 10 Average Overweight (x) . | . . . . . . Largest Inventory Capacity 15 | 8 8 8 15 15 15 Average Capacity 13 | 6 8 8 10 14 15 Most Carried 15 | 6 2 8 10 11 15 Average Carried 9 | 2 1 4 6 6 13 Final Capacity 15 | 8 8 8 15 15 15 Final Carried 11 | 1 2 6 7 11 10 Class Distribution -------------------- 67% | Mutant 32% | Scavenger-Mutant Dominant Class ---------------- Mutant | -10/Materials Mutant | -10/Mines Scavenger-Mutant | -9/Materials Mutant | -8/Materials Mutant | -7/Factory Resources | -11 -10 -10 -9 -8 -7 ----------- Run | Yrd Mat Min Mat Mat Fac Matter Collected 1789 | . 39 155 314 429 852 Remotely . | . . . . . . Salvage Created 2488 | . 39 155 350 566 1378 Parts 133 | . 2 8 31 25 67 Haulers Intercepted . | . . . . . . Recyclers Shooed 3 | . 1 . . 1 1 Parts Field Recycled . | . . . . . . Retrieved Matter . | . . . . . . Parts Self-Destructed . | . . . . . . Prevented . | . . . . . . Parts Restored . | . . . . . . Kills | -11 -10 -10 -9 -8 -7 ------- Run | Yrd Mat Min Mat Mat Fac Combat Hostiles Destroyed 51 | . 1 1 9 12 28 Melee 6 | . . . . 3 3 Guns 29 | . 1 1 6 8 13 Cannons 11 | . . . 3 . 8 AOE 2 | . . . . 1 1 Classes Destroyed 11 | . 1 2 3 2 3 Worker 4 | . . . 2 . 2 Builder 1 | . . . . 1 . Tunneler 1 | . . 1 . . . Recycler 3 | . . 1 1 . 1 Swarmer 3 | . . . 3 . . Grunt 27 | . 1 1 3 7 15 Duelist 2 | . . . . 1 1 Sentry 9 | . . . 3 4 2 Specialist 2 | . . . . . 2 Hunter 2 | . . . . . 2 Programmer 6 | . . . . . 6 Best Kill Streak 5 | . 1 3 4 2 5 Combat Bots Only 5 | . 1 1 4 2 5 Max Kills in Single Turn 2 | . 1 1 1 2 1 Gunslinging . | . . . . . . Exploded 1 | . . . . 1 1 Melee 1 | . . . . 1 1 Uniques/NPCs Destroyed . | . . . . . . Combat | -11 -10 -10 -9 -8 -7 -------- Run | Yrd Mat Min Mat Mat Fac Hostile Shots Fired 1053 | . 8 . 89 194 762 Missed 327 | . 2 . 28 44 253 Hits 726 | . 6 . 61 150 509 Melee 10 | . . . . 1 9 Projectile 716 | . 6 . 61 149 500 AOE 2 | . . . 1 . 1 Critical Strikes 16 | . . . 3 4 9 Part Disruptions 1 | . . . . . 1 Damage Taken 10376 | . 84 11 1121 2444 6716 Core 1390 | . 13 . 224 448 705 Absorbed by Shields . | . . . . . . Redirected to Shielding 77 | . . . . . 77 Core Remaining (%) 64 | 100 . 94 44 18 . Volleys Fired 274 | . 2 3 61 68 140 Largest 2 | . 2 2 2 2 1 Hottest 133 | . 40 40 133 100 100 Shots Fired 300 | . 4 6 71 78 141 Gun 204 | . 4 6 32 66 96 Cannon 58 | . . . 22 . 36 Launcher 8 | . . . . 5 3 Special 30 | . . . 17 7 6 Kinetic 255 | . 4 6 54 66 125 Thermal 32 | . . . 17 7 8 Explosive 8 | . . . . 5 3 Electromagnetic 5 | . . . . . 5 Robot Hit Streak 17 | . 3 4 17 7 12 Robot Miss Streak 3 | . . 2 2 2 3 Penetration Max . | . . . . . . Secondary Targets 2 | . . . 1 1 . Max Gunslinging Chain 1 | . . . 1 1 . Shots Hit Robots 224 | . 3 4 40 57 120 Core Hits 111 | . 2 5 18 30 56 Critical Kills 4 | . . . . 1 3 Critical Parts Destroyed 4 | . . . 1 1 2 Critical Strikes 14 | . . . 1 2 11 Destroy 5 | . . . 1 2 2 Blast 5 | . . . . . 5 Smash 3 | . . . . . 3 Sever 1 | . . . . . 1 Melee Attacks 57 | . . . 3 18 36 Impact 29 | . . . . . 29 Slashing 28 | . . . 3 18 7 Piercing . | . . . . . . Sneak Attacks 3 | . . . 1 1 1 Combat Hostiles . | . . . . . . Follow-up Attacks . | . . . . . . Damage Inflicted 5305 | . 40 47 656 1411 3151 Guns 2156 | . 36 47 293 651 1129 Cannons 974 | . . . 240 . 734 Explosions 522 | . . . . 348 174 Melee 1625 | . . . 99 412 1114 Ramming 4 | . 4 . . . . Kinetic 3047 | . 36 47 533 651 1780 Thermal 44 | . . . 24 . 20 Explosive 522 | . . . . 348 174 Electromagnetic 63 | . . . . . 63 Impact 929 | . . . . . 929 Slashing 696 | . . . 99 412 185 Piercing . | . . . . . . Highest Corruption 17 | . . . 1 . 17 Average Corruption 6 | . . . 1 . 8 Corruption Purged . | . . . . . . Corruption Blocked . | . . . . . . Effects 62 | . . . 6 . 56 Message Errors 9 | . . . 2 . 7 Matter Fused 10 | . . . 1 . 9 Heat Flow Errors 13 | . . . 2 . 11 Energy Discharges 8 | . . . . . 8 Parts Fused 1 | . . . . . 1 Data Loss (minor) 7 | . . . . . 7 Data Loss (major) 2 | . . . . . 2 Misfires 2 | . . . . . 2 Alerts 5 | . . . . . 5 Misdirections 3 | . . . . . 3 Weapon Failures 2 | . . . 1 . 1 Overload Shots . | . . . . . . Overflow Damage 368 | . . . . 122 246 Projectiles . | . . . . . . Explosions 9 | . . . . 9 . Melee 359 | . . . . 113 246 Knockbacks 13 | . . . 1 . 12 Impact 2 | . . . . . 2 Kinetic 9 | . . . . . 9 Secondary 2 | . . . 1 . 1 Self-Inflicted Damage 189 | . . . . 113 76 Shots 6 | . . . . 4 2 Rammed 3 | . 3 . . . . Targets Rammed 3 | . 3 . . . . Kicked . | . . . . . . Crushed . | . . . . . . Highest Temperature 261 | . . . 186 35 261 Average Temperature 62 | . . . 72 8 78 Received Heat Transfer 3180 | . 48 6 240 1251 1635 Siege Activations . | . . . . . . Martial Activations . | . . . . . . Shielding Activations . | . . . . . . Robots Disrupted . | . . . . . . Combat Hostiles . | . . . . . . Robots Corrupted 4 | . . . . . 4 Combat Hostiles 3 | . . . . . 3 Parts Fried 4 | . . . . . 4 Impact Corruptions 13 | . . . . . 13 Robots Melted . | . . . . . . Combat Hostiles . | . . . . . . Parts Melted 1 | . . . 1 . . Heat Transferred 100 | . . . 50 . 50 Parts Sabotaged . | . . . . . . Parts Stolen . | . . . . . . Parts Stripped . | . . . . . . Power Chain Reactions . | . . . . . . Alert | -11 -10 -10 -9 -8 -7 ------- Run | Yrd Mat Min Mat Mat Fac Maximum Alert Level 1 | . . . . . 1 Low Security (%) 98 | 100 100 100 100 100 96 Level 1 1 | . . . . . 3 Level 2 . | . . . . . . Level 3 . | . . . . . . Level 4 . | . . . . . . Level 5 . | . . . . . . High Security . | . . . . . . Max Security . | . . . . . . Peak Influence 211 | . 15 63 90 50 211 Initial 5 | . . 5 . . 5 Average 59 | . 1 14 15 13 111 Influence Increases 1697 | . 47 83 354 383 830 Destroy 0b10 Robot/C 1080 | . 20 40 220 240 560 Destroy 0b10 Robot/NC 45 | . . 10 15 5 15 Destroy Leader 270 | . . 10 70 60 130 Allied During Kill 12 | . . 8 4 . . Successful Hack 42 | . 12 . 18 12 . Disable Machine 30 | . . . 15 15 . Destroy Structure 68 | . . . 12 36 20 Lose Combat Pursuer 150 | . 15 15 . 15 105 Influence Decreases 1638 | . 32 98 354 370 784 Entered New Map 18 | . . 10 . . 8 Time Decay 1057 | . 32 73 252 264 436 Lost Part 486 | . . . 48 98 340 Lost Ally 39 | . . 15 24 . . Purge Threat 38 | . . . 30 8 . Squads Dispatched 13 | . . . 2 1 10 Investigation 4 | . . . 1 . 3 Extermination 5 | . . . . . 5 Reinforcement 4 | . . . 1 1 2 Assault . | . . . . . . Garrison . | . . . . . . Intercept . | . . . . . . Searches Triggered . | . . . . . . Construction Impeded 1 | . . . . . 1 Haulers Reinforced . | . . . . . . Active Scanning Responses . | . . . . . . Cargo Convoy Interrupts . | . . . . . . Stealth | -11 -10 -10 -9 -8 -7 --------- Run | Yrd Mat Min Mat Mat Fac Distress Signals 5 | . . . 2 2 1 Communications Jammed . | . . . . . . Distress Signals . | . . . . . . Times Spotted 89 | . 4 3 18 24 40 Peak Tracking Total 7 | . 3 2 5 5 7 Tactical Retreats 7 | . 1 1 . 1 4 Traps | -11 -10 -10 -9 -8 -7 ------- Run | Yrd Mat Min Mat Mat Fac Traps Triggered 4 | . . . 2 . 2 Indirectly . | . . . . . . Trap Hack Attempts . | . . . . . . Triggered . | . . . . . . Disarmed . | . . . . . . Reprogrammed . | . . . . . . Reused . | . . . . . . Traps Extracted . | . . . . . . Installed . | . . . . . . Triggered . | . . . . . . Machines | -11 -10 -10 -9 -8 -7 ---------- Run | Yrd Mat Min Mat Mat Fac Machines Disabled 2 | . . . 1 1 . Max in Single Turn 1 | . . . 1 1 . Machines Repaired . | . . . . . . Machines Dismantled . | . . . . . . Machines Sabotaged . | . . . . . . Overloaded Fab Kills . | . . . . . . Hacking | -11 -10 -10 -9 -8 -7 --------- Run | Yrd Mat Min Mat Mat Fac Machines Accessed 22 | . 2 . 6 5 9 Terminals 19 | . 2 . 5 5 7 Fabricators 1 | . . . . . 1 Repair Stations 1 | . . . . . 1 Recycling Units 1 | . . . 1 . . Scanalyzers . | . . . . . . Garrison Access . | . . . . . . Total Hacks 51 | . 6 . 21 9 15 Successful 19 | . 2 . 9 6 2 Failed 32 | . 4 . 12 3 13 Catastrophic 10 | . . . 3 . 7 Database Lockouts . | . . . . . . Manual 47 | . 6 . 17 9 15 Terminals 47 | . 6 . 19 9 13 Fabricators 1 | . . . . . 1 Repair Stations 1 | . . . . . 1 Recycling Units 2 | . . . 2 . . Scanalyzers . | . . . . . . Garrison Access . | . . . . . . Terminal Hacks 5 | . . . 3 1 1 Part Schematic 1 | . . . 1 . . Open DSF 1 | . . . . . 1 Alert Level 1 | . . . 1 . . Unreport Threat 2 | . . . 1 1 . Fabricator Hacks 1 | . . . . . 1 Load Schematic 1 | . . . . . 1 Repair Station Hacks . | . . . . . . Recycling Unit Hacks 2 | . . . 2 . . Report Inventory 1 | . . . 1 . . Retrieve Components 1 | . . . 1 . . Scanalyzer . | . . . . . . Garrison Access Hacks . | . . . . . . Unauthorized Hacks 11 | . 2 . 4 5 . Terminals 11 | . 2 . 4 5 . Assimilate 11 | . 2 . 4 5 . Fabricators . | . . . . . . Repair Stations . | . . . . . . Recycling Units . | . . . . . . Scanalyzers . | . . . . . . Garrison Access . | . . . . . . Data Cores Recovered . | . . . . . . Used . | . . . . . . Hacking Detections 15 | . 1 . 5 1 8 Full Trace Events 4 | . . . 1 . 3 Feedback Events 1 | . . . . . 1 Corruption 1 | . . . . . 1 Feedback Blocked . | . . . . . . Robot Schematics Acquired . | . . . . . . Robots Built . | . . . . . . Authchips . | . . . . . . Time . | . . . . . . Total Robot Build Rating . | . . . . . . Part Schematics Acquired 1 | . . . 1 . . Parts Built . | . . . . . . Authchips . | . . . . . . Time . | . . . . . . Total Part Build Rating . | . . . . . . Part Studies Acquired . | . . . . . . Parts Repaired . | . . . . . . Time . | . . . . . . Parts Recycled . | . . . . . . Recycled Matter . | . . . . . . Retrieved Matter . | . . . . . . Retrieved Components 10 | . . . 10 . . Parts Scanalyzed . | . . . . . . Part Schematics Acquired . | . . . . . . Parts Damaged . | . . . . . . Bothacking | -11 -10 -10 -9 -8 -7 ------------ Run | Yrd Mat Min Mat Mat Fac Used RIF Installer . | . . . . . . Robots Hacked . | . . . . . . Non-combat . | . . . . . . Combat . | . . . . . . Robot Hacks Applied . | . . . . . . Relay Couplers Released . | . . . . . . Fabnet Peak Effective % . | . . . . . . Robots Rewired . | . . . . . . Allies Hacked . | . . . . . . Hacks Repelled . | . . . . . . Allies | -11 -10 -10 -9 -8 -7 -------- Run | Yrd Mat Min Mat Mat Fac Total Allies 4 | . . 4 . . . Largest Group 4 | . . 4 3 . . Highest-Rated Group 71 | . . 71 40 . . Highest-Rated Ally 31 | . . 31 16 . . Total Orders . | . . . . . . Ally Attacks 27 | . . 12 15 . . Total Damage 358 | . . 218 140 . . Kills 3 | . . 1 2 . . Allies Corrupted . | . . . . . . Allies Melted . | . . . . . . Intel | -11 -10 -10 -9 -8 -7 ------- Run | Yrd Mat Min Mat Mat Fac Active Infowar (turns) 912 | . . . . . 912 Jamming 912 | . . . . . 912 Robot Analysis Total . | . . . . . . Derelict Logs Recovered 1 | . . 1 . . . Drone Launches . | . . . . . . Drone Recoveries . | . . . . . . Exploration | -11 -10 -10 -9 -8 -7 ------------- Run | Yrd Mat Min Mat Mat Fac Turns Passed 5496 | 51 199 327 1130 1219 2570 Spaces Moved 2397 | 45 114 193 405 565 1075 Core 61 | 30 . . 7 19 5 Treads 1383 | 15 114 193 365 . 696 Legs 666 | . . . 33 546 87 Wheels 287 | . . . . . 287 Hover . | . . . . . . Flight . | . . . . . . Fastest Speed 50 | 50 160 160 160 50 90 Average Speed 152 | 88 160 160 169 144 151 Slowest Speed 550 | 160 160 160 550 400 550 Overloaded Moves . | . . . . . . Propulsion Burnouts . | . . . . . . Robots Hopped . | . . . . . . Potential Cave-ins 5 | . . . 2 3 . Cave-ins Triggered 2 | . . . 1 . 1 Exploration Rate (%) 30 | 3 24 55 35 40 23 Regions Visited 5 Branch Regions 1 Pre-discovered Areas . | . . . . . . Known Exits Taken 1 | . . . . 1 . Unknown Exits Taken 4 | 1 1 1 1 . . Scrap Searched . | . . . . . . Spaces Dug 24 | . . . 17 7 . Terrain Destroyed 91 | . . . 19 43 29 Melee . | . . . . . . Projectile 33 | . . . 19 7 7 AOE 58 | . . . . 36 22 Terrain Rammed . | . . . . . . Walls Destroyed . | . . . . . . Machines Disabled . | . . . . . . Actions | -11 -10 -10 -9 -8 -7 --------- Run | Yrd Mat Min Mat Mat Fac Total 3792 | 56 125 206 742 845 1818 Wait 835 | . 6 . 230 141 458 Move 2392 | 44 113 192 404 564 1075 Hop . | . . . . . . Pick Up 97 | 6 1 7 17 23 43 Fast Attach 6 | 1 . . . 2 3 Attach 78 | 5 . 1 12 21 39 Detach 4 | . . . . 2 2 Swap 19 | . . 1 7 4 7 Drop 27 | . . 2 8 2 15 Fire 274 | . 2 3 61 68 140 Melee 57 | . . . 3 18 36 Ram . | . . . . . . Kick . | . . . . . . Crush 3 | . 3 . . . . Escape Stasis . | . . . . . . Rewire . | . . . . . . Trap . | . . . . . . Miscellaneous . | . . . . . . Route ------- -11/Scrapyard -10/Materials -10/Mines -9/Materials -8/Materials -7/Factory (discovered 1 exit: *Low) History --------- Turn | Location | Event 8 | -11/Scrapyard | Discovered new exit (range 16) 52 | -11/Scrapyard | Entered Materials 241 | -10/Materials | Discovered new exit (range 7) 251 | -10/Materials | Entered Mines 254 | -10/Mines | Received a Mining Laser from a helpful Derelict 300 | -10/Mines | Build established: Mutant 388 | -10/Mines | Learned Materials terminal intel 404 | -10/Mines | Assisted by bots powering up and referring to "LRC-V3" 487 | -10/Mines | YI-UF0 nonchalantly dropped a Grenade Launcher on the ground 523 | -10/Mines | A weapon hastily lodged in a ceiling crevice suddenly fell to the ground 563 | -10/Mines | Discovered new exit (range 8) 578 | -10/Mines | Entered Materials 578 | -9/Materials | Accompanied by 3 allies 578 | -9/Materials | Evolved 2 slots: Propulsion x1, Utility x1 579 | -9/Materials | Loaded intel: 12 terminal locations 1010 | -9/Materials | Lost 4 parts (1p3n) 1146 | -9/Materials | Build established: Scavenger-Mutant 1311 | -9/Materials | Crushed by falling debris 1697 | -9/Materials | Discovered new exit (range 5) 1702 | -9/Materials | Core integrity fell below 50% 1708 | -9/Materials | Entered another Materials area 1708 | -8/Materials | Evolved 2 slots: Propulsion x1, Utility x1 1971 | -8/Materials | Lost 11 parts (1p5n3u2w) 2156 | -8/Materials | Build established: Mutant 2447 | -8/Materials | Core integrity fell below 50% 2820 | -8/Materials | Build established: Scavenger-Mutant 2867 | -8/Materials | Discovered new exit (range 8) 2926 | -8/Materials | Core integrity fell below 20% 2926 | -8/Materials | Identified exit to Factory 2927 | -8/Materials | Entered Factory 2927 | -7/Factory | Evolved 2 slots: Propulsion x1, Utility x1 3171 | -7/Factory | Lost 6 parts (4n1u1w) 3592 | -7/Factory | Build established: Mutant 4825 | -7/Factory | System corruption reached 10% 4913 | -7/Factory | Lost 7 parts (4n2u1w) 5056 | -7/Factory | Core integrity fell below 50% 5154 | -7/Factory | Crushed by falling debris 5185 | -7/Factory | Lost 5 parts (1p3n1w) 5368 | -7/Factory | Discovered new exit (range 16) 5401 | -7/Factory | Identified exit to Lower Caves 5446 | -7/Factory | Core integrity fell below 20% 5497 | -7/Factory | Destroyed by Y-54 Guardian with Flak Gun Last Messages --------------- U-05 Engineer builds a Wall. Arm. Wheel destroyed. Acquired Lgt. Nuclear Core. U-05 Engineer lays Concrete. Acquired Carbon-fiber Leg. Arm. Wheel destroyed. U-05 Engineer lays Concrete. Gauss Rifle destroyed. U-05 Engineer lays Concrete. Arm. Wheel destroyed. U-05 Engineer destroyed. The unstable cave ceiling collapses. System corrupted: Heat flow error (+177). Acquired Imp. Weapon Shielding. EM Pulse Cannon destroyed. U-05 Engineer lays Concrete. Y-54 Guardian misfires. U-05 Engineer lays Concrete. The unstable cave ceiling collapses. Adv. Heat Sink destroyed. Map ----- +----------------------------------------------------+ | ?????????????????????????????????????????????????? | | ?????????????????????????????????????????????????? | | ?????????????????????????????????????????????????? | | ?????????????????????????????????????????????????? | | ?????????????????????????????????????????????????? | | ?????????????????????????????????????????????????? | | ?????????????????????????????????????????????????? | | ?????????????????????????????????????????????????? | | ?????????????????????????????????????????????????? | | ???????????????????????????????????????????" ????? | | ??????##########???????????????????????????" ???? | | ####### #???????????##########??????" ???? | | # """#???????????# #??????" ???? | | + """#???????????# #??? ?? ???? | | " """ # ! """#???????????# #??? " " ???? | | " """ # #??????##???# #??? " " ???? | | " ?"" # ! """#??????# #??# #??" " " ???? | | ??? # """#???????# ### #? " " " #??? | | ???? # """#???????## ?#? " " " #??? | | ???? # ########## ??# " " " #??? | | #####+######+### ## # ???# " " " #### | | ## # ######+# " " " | | % =! " " " | | ! > !%!/ u | | Yu * ## | | ##@ ####+####### # | | ############+### # ## ??####+### | | #??????????????#########"" #?"""" ## # | | #???????????????# #"Y #?"""" ??# """ # | | #???????????????# """ #"" #?"""" ?????# """ # | | #???????????????# """ # #?""""??????# """ # | | #???????????????#! """ # #??"????????# ## | | #???????????????# # #???????????# """ ## | | #???????????????# "" # #???????????# """ # | | ????????????????# """ + """ #???????????# """ # | | ????????????????# "R # """ #???????????# # | | ????????????????# """ # """ #???????????# "T" # | | ????????????????# "" # ? #???????????# """ # | | ????????????????# ##??###???????????# # | | #####################+############################ | | ###### | | | | ###### | | ######/#################### ###+#########?# #???# | | """ # #????????????# # #????# #???# | | T"" # #????????????# # """" #??### ##### | | # #????????????# # ""S"" #??# ## # | | # #????????????# # "" "" #### #### | | "" # #????????????# # / | | # #????????????# # """ #### #### | +----------------------------------------------------+ Best States ------------- Heat Dissipation 67 Energy Generation 18 Energy Capacity 290 Matter Stores 259 Matter Capacity 300 Sight Range 16 Terrain Scan Density 10 Jamming Range 12 Armor Coverage 375 Propulsion Shielding 33 Weapon Shielding 66 Evasion (%) 55 Recoil Reduction 5 Defensive Hacking 10 Item Schematics ----------------- Imp. Treads | -9/Materials | Hacked Robot Schematics ------------------ None Fabricated ------------ Nothing Repaired ---------- Nothing Studied --------- None Alien Tech Used ----------------- None Achievements -------------- None Challenges ------------ None Game ------ Seed WardroneDamperCloak Manual? 0 Play Time 01:16:07 Cumulative 25.3 hours Start 2026.03.19 @ 21:08:04 End 2026.03.19 @ 22:34:55 Sessions 1 Manual Loads 0 Difficulty Rogue Special Mode None Game No. 74 Rogue 72 Adventurer 2 Explorer 0 Win Type - Total 0 Types 0/0/0/0/0/0/0/0/0/0 Lore% 7 Gallery% 18 Achievement% 15 Wizard Run 0 Options --------- Layout 1 ASCII 0 Keyboard 0 Movement Mouse Keybinds 0 Fullscreen 2 Font 32/SmallcapsGlow Map View 50x35 Zoom Use 0% Tactical HUD 0 Map Filters NONE Filters NONE Steam 1 RUN: 2a7d939d-ee6b-4650-ad1d-a1d1cb8aba3c